Cogmind - Beta 13 @@@ ROGUE MODE // 2024.04.03 @ 14:33:00 Player: donk Result: Destroyed by G-47 Trooper with Particle Gun Performance ------------- Evolutions (0) 0 Regions Visited (1) 200 Robots Destroyed (18) 90 Value Destroyed (430) 430 Prototype IDs (0) 0 Alien Tech Used (0) 0 Bonus (0) 0 TOTAL SCORE: 720 Bonus ------- None Cogmind --------- Core Integrity 0/250 Matter 295/300 Energy 100/100 System Corruption 0% Temperature Cool (9) Movement Walking (330) Ox3 Location -10/Materials Parts ------- > --- POWER (1) -------- (None) > --- PROPULSION (2) --- Aluminum Leg > --- UTILITY (2) ------ High-capacity Storage Unit > --- WEAPON (2) ------- (None) > --- INVENTORY (20) --- Heat Sink High-capacity Matter Pod (200) EM Pulse Gun Light Cannon Peak State ------------ > --- POWER ------------ Light Ion Engine > --- PROPULSION ------- Aluminum Leg Aluminum Leg > --- UTILITY ---------- High-capacity Storage Unit High-capacity Matter Pod > --- WEAPON ----------- Beam Cannon Beam Cannon > --- INVENTORY -------- Ion Engine Aluminum Leg Aluminum Leg Wheel Wheel Heat Sink Structural Scanner EM Pulse Gun Assault Rifle Light Cannon [Rating: 8] Favorites ----------- Power Ion Engine Engine Ion Engine Propulsion Aluminum Leg Treads Light Treads Leg Aluminum Leg Utility High-capacity Storage Unit Device Structural Scanner Storage High-capacity Storage Unit Weapon Beam Cannon Energy Gun EM Pulse Gun Energy Cannon Beam Cannon Ballistic Gun Assault Rifle Build | -11 -10 ------- Run | Yrd Mat Slots Evolved . | . . Power . | . . Propulsion . | . . Utility . | . . Weapon . | . . Parts Attached 23 | 6 17 Power 5 | 1 4 Engine 5 | 1 4 Core . | . . Reactor . | . . Propulsion 7 | 2 5 Treads 2 | 2 . Leg 5 | . 5 Wheel . | . . Hover . | . . Flight . | . . Utility 6 | 1 5 Device 3 | . 3 Storage 3 | 1 2 Processor . | . . Hackware . | . . Protection . | . . Artifact . | . . Weapon 5 | 2 3 Energy Gun 1 | 1 . Energy Cannon 2 | . 2 Ballistic Gun 2 | 1 1 Ballistic Cannon . | . . Launcher . | . . Special Weapon . | . . Impact Weapon . | . . Slashing Weapon . | . . Piercing Weapon . | . . Special Melee Weapon . | . . Unidentified Prototypes . | . . Parts Lost 8 | . 8 Power 2 | . 2 Propulsion 2 | . 2 Utility 1 | . 1 Weapon 3 | . 3 Highest Loss Streak 7 | . 7 To Critical Strikes 1 | . 1 Average Slot Usage (%) 94 | . 94 Engine 13 | . 13 Treads 13 | . 13 Leg 14 | . 14 Device 9 | . 9 Storage 15 | . 15 Energy Gun 5 | . 5 Energy Cannon 13 | . 13 Ballistic Gun 7 | . 7 Naked Turns . | . . Heaviest Build 55 | 14 55 Greatest Support 40 | 40 40 Greatest Overweight (x) 4 | 1 4 Average Overweight (x) 1 | . 1 Largest Inventory Capacity 20 | 8 20 Average Capacity 18 | 6 19 Most Carried 10 | 3 10 Average Carried 5 | 1 6 Final Capacity 20 | 8 20 Final Carried 4 | 3 4 Class Distribution -------------------- 100% | Mutant Dominant Class ---------------- Mutant | -10/Materials Resources | -11 -10 ----------- Run | Yrd Mat Matter Collected 679 | 236 443 Remotely . | . . Salvage Created 668 | . 668 Parts 35 | . 35 Haulers Intercepted . | . . Recyclers Shooed 2 | . 2 Parts Field Recycled . | . . Retrieved Matter . | . . Parts Self-Destructed . | . . Prevented . | . . Kills | -11 -10 ------- Run | Yrd Mat Combat Hostiles Destroyed 11 | . 11 Guns 4 | . 4 Cannons 7 | . 7 Classes Destroyed 6 | . 6 Builder 1 | . 1 Recycler 2 | . 2 Operator 1 | . 1 Watcher 3 | . 3 Swarmer 2 | . 2 Grunt 9 | . 9 Best Kill Streak 4 | . 4 Combat Bots Only 3 | . 3 Max Kills in Single Turn 2 | . 2 Gunslinging . | . . Exploded . | . . Melee . | . . Uniques/NPCs Destroyed . | . . Combat | -11 -10 -------- Run | Yrd Mat Hostile Shots Fired 177 | . 177 Missed 49 | . 49 Damage Taken 1411 | . 1411 Core 259 | . 259 Absorbed by Shields . | . . Core Remaining (%) 100 | 100 . Volleys Fired 57 | . 57 Largest 2 | . 2 Hottest 120 | . 120 Shots Fired 106 | . 106 Gun 43 | . 43 Cannon 63 | . 63 Launcher . | . . Special . | . . Kinetic 26 | . 26 Thermal 63 | . 63 Explosive . | . . Electromagnetic 17 | . 17 Robot Hit Streak 8 | . 8 Robot Miss Streak 4 | . 4 Penetration Max . | . . Secondary Targets . | . . Shots Hit Robots 58 | . 58 Core Hits 21 | . 21 Critical Kills 1 | . 1 Critical Parts Destroyed . | . . Critical Strikes 1 | . 1 Meltdown 1 | . 1 Melee Attacks . | . . Impact . | . . Slashing . | . . Piercing . | . . Sneak Attacks . | . . Combat Hostiles . | . . Follow-up Attacks . | . . Damage Inflicted 953 | . 953 Guns 359 | . 359 Cannons 594 | . 594 Explosions . | . . Melee . | . . Ramming . | . . Kinetic 183 | . 183 Thermal 594 | . 594 Explosive . | . . Electromagnetic 176 | . 176 Impact . | . . Slashing . | . . Piercing . | . . Highest Corruption . | . . Average Corruption . | . . Corruption Purged . | . . Corruption Blocked . | . . Overload Shots . | . . Overflow Damage 6 | . 6 Projectiles 6 | . 6 Explosions . | . . Melee . | . . Knockbacks . | . . Impact . | . . Kinetic . | . . Secondary . | . . Self-Inflicted Damage . | . . Shots . | . . Rammed . | . . Targets Rammed . | . . Kicked . | . . Crushed . | . . Highest Temperature 490 | . 490 Average Temperature 108 | . 108 Received Heat Transfer 636 | . 636 Effects 8 | . 8 Shutdowns 1 | . 1 Energy Bleed 1 | . 1 Interference 3 | . 3 Damage (minor) 1 | . 1 Damage (major) 2 | . 2 Siege Activations . | . . Robots Corrupted . | . . Combat Hostiles . | . . Parts Fried 1 | . 1 Impact Corruptions . | . . Robots Melted 1 | . 1 Combat Hostiles . | . . Parts Melted 3 | . 3 Heat Transferred 1258 | . 1258 Parts Sabotaged . | . . Parts Stolen . | . . Parts Stripped . | . . Power Chain Reactions . | . . Alert | -11 -10 ------- Run | Yrd Mat Peak Influence 172 | . 172 Initial . | . . Average 60 | . 63 Maximum Alert Level . | . . Low Security (%) 100 | 100 100 Level 1 . | . . Level 2 . | . . Level 3 . | . . Level 4 . | . . Level 5 . | . . High Security . | . . Max Security . | . . Squads Dispatched 3 | . 3 Investigation 1 | . 1 Extermination . | . . Reinforcement 2 | . 2 Assault . | . . Garrison . | . . Intercept . | . . Searches Triggered . | . . Construction Impeded . | . . Haulers Reinforced . | . . Active Scanning Responses . | . . Cargo Convoy Interrupts . | . . Stealth | -11 -10 --------- Run | Yrd Mat Distress Signals 2 | . 2 Communications Jammed . | . . Distress Signals . | . . Times Spotted 26 | . 26 Peak Tracking Total 4 | . 4 Tactical Retreats 1 | . 1 Traps | -11 -10 ------- Run | Yrd Mat Traps Triggered 1 | . 1 Indirectly . | . . Trap Hack Attempts . | . . Triggered . | . . Disarmed . | . . Reprogrammed . | . . Reused . | . . Traps Extracted . | . . Installed . | . . Triggered . | . . Machines | -11 -10 ---------- Run | Yrd Mat Machines Disabled 1 | . 1 Max in Single Turn 1 | . 1 Machines Repaired . | . . Machines Dismantled . | . . Machines Sabotaged . | . . Overloaded Fab Kills . | . . Hacking | -11 -10 --------- Run | Yrd Mat Machines Accessed 4 | . 4 Terminals 4 | . 4 Fabricators . | . . Repair Stations . | . . Recycling Units . | . . Scanalyzers . | . . Garrison Access . | . . Total Hacks 9 | . 9 Successful 5 | . 5 Failed 4 | . 4 Catastrophic . | . . Database Lockouts . | . . Manual . | . . Terminals 9 | . 9 Fabricators . | . . Repair Stations . | . . Recycling Units . | . . Scanalyzers . | . . Garrison Access . | . . Terminal Hacks 5 | . 5 Record 1 | . 1 Alert Level 1 | . 1 Locate Traps 1 | . 1 Dispatch Records 1 | . 1 Zone Layout 1 | . 1 Fabricator Hacks . | . . Repair Station Hacks . | . . Recycling Unit Hacks . | . . Scanalyzer . | . . Garrison Access Hacks . | . . Unauthorized Hacks . | . . Terminals . | . . Fabricators . | . . Repair Stations . | . . Recycling Units . | . . Scanalyzers . | . . Garrison Access . | . . Data Cores Recovered . | . . Used . | . . Hacking Detections 2 | . 2 Full Trace Events . | . . Feedback Events . | . . Feedback Blocked . | . . Robot Schematics Acquired . | . . Robots Built . | . . Authchips . | . . Time . | . . Total Robot Build Rating . | . . Part Schematics Acquired . | . . Parts Built . | . . Authchips . | . . Time . | . . Total Part Build Rating . | . . Parts Repaired . | . . Time . | . . Parts Recycled . | . . Recycled Matter . | . . Retrieved Matter . | . . Retrieved Components . | . . Parts Scanalyzed . | . . Part Schematics Acquired . | . . Parts Damaged . | . . Bothacking | -11 -10 ------------ Run | Yrd Mat Used RIF Installer . | . . Robots Hacked . | . . Non-combat . | . . Combat . | . . Robot Hacks Applied . | . . Relay Couplers Released . | . . Fabnet Peak Effective % . | . . Robots Rewired . | . . Allies Hacked . | . . Hacks Repelled . | . . Allies | -11 -10 -------- Run | Yrd Mat Total Allies . | . . Largest Group . | . . Highest-Rated Group . | . . Highest-Rated Ally . | . . Total Orders . | . . Ally Attacks . | . . Total Damage . | . . Kills . | . . Allies Corrupted . | . . Allies Melted . | . . Intel | -11 -10 ------- Run | Yrd Mat Robot Analysis Total . | . . Derelict Logs Recovered . | . . Drone Launches . | . . Drone Recoveries . | . . Exploration | -11 -10 ------------- Run | Yrd Mat Turns Passed 1422 | 76 1346 Spaces Moved 498 | 44 454 Core 6 | 6 . Treads 263 | 38 225 Legs 229 | . 229 Wheels . | . . Hover . | . . Flight . | . . Fastest Speed 50 | 50 160 Average Speed 236 | 148 244 Slowest Speed 400 | 160 400 Overloaded Moves . | . . Propulsion Burnouts . | . . Robots Hopped . | . . Cave-ins Triggered . | . . Exploration Rate (%) 32 | 5 59 Regions Visited 1 Branch Regions . Pre-discovered Areas . | . . Known Exits Taken . | . . Unknown Exits Taken 1 | 1 . Scrap Searched . | . . Spaces Dug . | . . Terrain Destroyed . | . . Melee . | . . Projectile . | . . AOE . | . . Terrain Rammed . | . . Walls Destroyed . | . . Machines Disabled . | . . Actions | -11 -10 --------- Run | Yrd Mat Total 634 | 52 582 Wait 35 | . 35 Move 497 | 43 454 Hop . | . . Pick Up 12 | 3 9 Fast Attach 8 | 6 2 Attach 3 | . 3 Detach . | . . Swap 12 | . 12 Drop 10 | . 10 Fire 57 | . 57 Melee . | . . Ram . | . . Kick . | . . Crush . | . . Escape Stasis . | . . Rewire . | . . Trap . | . . Miscellaneous . | . . Route ------- -11/Scrapyard -10/Materials (discovered 3 exits: [*Mat x2] / [*Min]) History --------- Turn | Location | Event 14 | -11/Scrapyard | Discovered new exit (range 16) 77 | -11/Scrapyard | Entered Materials 315 | -10/Materials | Build established: Mutant 627 | -10/Materials | Discovered new exit (range 16) 945 | -10/Materials | Discovered new exit (range 10) 1102 | -10/Materials | Discovered new exit (range 12) 1390 | -10/Materials | Core integrity fell below 50% 1410 | -10/Materials | Core integrity fell below 20% 1423 | -10/Materials | Destroyed by G-47 Trooper with Particle Gun Last Messages --------------- 01229_ W-16 Scout destroyed. 01229_ R-06 Scavenger collects Signal Interpreter. 01232_ K-01 Serf collects debris. 01232_ R-06 Scavenger collects Visual Processing Unit. 01236_ K-01 Serf collects debris. 01237_ Acquired 6 matter. 01271_ R-06 Scavenger inserts Visual Processing Unit into recycling unit. 01364_ ALERT: Hostiles spotted, dispatching reinforcements to Terminal M007. 01384_ R-06 Scavenger collects Aluminum Leg. 01391_ Assault Rifle destroyed. 01394_ Beam Cannon destroyed. 01398_ Ion Engine destroyed. 01399_ Aluminum Leg destroyed. 01410_ Structural Scanner destroyed. 01411_ Aluminum Leg destroyed. 01415_ Ion Engine destroyed. Map ----- +----------------------------------------------------+ | ## !! ## ##??????????????? ?????????????? | | + !! ## ###?????????????? ?????????????? | | ## # ##?????????????? ?????????????? | | ###########+#### ###????????????? ?????????????? | | ###### # ###????????????? ?????????????? | | ???????????????? ????????????? ?????????????? | | ???????????????? ?????????????????????????????? | | ?????????????? #^^^ ????????????????????????????? | | ?????????????? #^^^##????????????????????????????? | | ###??????????? # ##????????????????????????????? | | ######???????? # ##????????????????????????????? | | ###???????? # ##????????????????????????????? | | ##????????## ##????????????????????????????? | | ####??????## ##????????????????????????????? | | ## ############# ##????????????????????????????? | | % ########## ##????????????????????????????? | | !=%= ##????????????????????????????? | | "" ########## ##????????????????????????????? | | """ # [#% ##????????????????????????????? | | """ # "T" %+ ##????????????????????????????? | | # !==# ##????????????????????????????? | | ^ # # ##????????????????????????????? | | """ ########## #### ??????????????? | | """ ##########% #######+####+##### ????????? | | """ g g ! ^ ????????? | | g @ ????????? | | ########+## ^ ????????? | | T""############# ### ## ^??^??????????????? | | """############# ##????????????????????????????? | | ##?????????## ##????????????????????????????? | | ###?????????## ##????????????????????????????? | | ?????????????## ##????????????????????????????? | | ??????????????## ##????????????????????????????? | | ??????????????## ###########??##"??????????????? | | ??????????????## ########## ##??????????????? | | ??????????????## < ??????????? | | ??????????????## ??????????? | | ??????????????############### ####????????????? | | ??????????????################?######????????????? | | ??????????????????????????????? ??????????????? | | ?????????????????????????????????????????????????? | | ?????????????????????????????????????????????????? | | ?????????????????????????????????????????????????? | | ?????????????????????????????????????????????????? | | ?????????????????????????????????????????????????? | | ?????????????????????????????????????????????????? | | ?????????????????????????????????????????????????? | | ?????????????????????????????????????????????????? | | | | | +----------------------------------------------------+ Best States ------------- Heat Dissipation 35 Energy Generation 10 Energy Capacity 250 Matter Stores 369 Matter Capacity 500 Sight Range 16 Terrain Scan Density 10 Evasion (%) 40 Recoil Reduction 2 Item Schematics ----------------- None Robot Schematics ------------------ None Fabricated ------------ Nothing Alien Tech Used ----------------- None Achievements -------------- None Challenges ------------ None Game ------ Seed GaussBattleFragment Manual? 0 Play Time 00:12:17 Cumulative 6.9 hours Start 2024.04.03 @ 14:20:47 End 2024.04.03 @ 14:33:00 Sessions 1 Manual Loads 0 Difficulty Rogue Special Mode None Game No. 10 Rogue 10 Adventurer 0 Explorer 0 Win Type - Total 0 Types 0/0/0/0/0/0/0/0/0 Lore% 9 Gallery% 16 Achievement% 14 Wizard Run 0 Options --------- Layout 1 ASCII 0 Keyboard 0 Movement Mouse Keybinds 0 Fullscreen 2 Font 24/Terminus Map View 50x35 Zoom Use 0% Tactical HUD 1 Map Filters NONE Filters NONE Steam 1 RUN: 7e1e6133-ebb8-4048-ba2c-47be0fee743f